Workbook

Sheet Guadalajara
A9: REPORTE DE ACTIVIDADES RESIDENCIA GUADALAJARA
A11: DICIEMBRE
B12: CÓDIGO | C12: CAMINO | D12: TOTAL KM. DEL CAMINO | E12: TRAMO A INTERVENIR | F12: ACTIVIDADES REALIZADAS | G12: MUNICIPIOS BENEFICIADOS | H12: KMS CONSERVADOS | I12: KMS CONSERVADOS TRAMOS AISLADOS
B13: 106 | C13: COYULA - MATATLAN | D13: 17.4 | E13: 0+400-16+600( TRAMOS AISLADOS) | F13: APLICACIÓN DE MARCAS SOBRE EL PAVIMENTO BACHEO SUPERFICIAL AISLADO/ MEZCLA EN CALIENTE | G13: TONALÁ | H13: 16.2 | I13: =H13*0.5 -> 8.1
B14: 111 | C14: GLORIETA "EL ALAMO" – PERIFERICO (PAR VIAL) | D14: 4.6 | E14: 0+000-4+300 ( TRAMOS AISLADOS) | F14: APLICACIÓN DE MARCAS SOBRE EL PAVIMENTO BACHEO SUPERFICIAL AISLADO/ MEZCLA EN CALIENTE | G14: SAN PEDRO TLAQUEPAQUE | H14: 4.3 | I14: =H14*0.5 -> 2.15
B15: 112 | C15: CHAPALA - JOCOTEPEC | D15: 25.3 | E15: 0+000-24+900 ( TRAMOS AISLADOS) | F15: APLICACIÓN DE MARCAS SOBRE EL PAVIMENTO BACHEO SUPERFICIAL AISLADO/ MEZCLA EN CALIENTE | G15: CHAPALA | H15: 24.9 | I15: 12.45
B16: 121 | C16: OCOTLAN - LA COMUNIDAD - LABOR VIEJA | D16: 14.8 | E16: 1+300-2+600( TRAMOS AISLADOS) 3+000-4+500( TRAMOS AISLADOS) | F16: APLICACIÓN DE MARCAS SOBRE EL PAVIMENTO BACHEO SUPERFICIAL AISLADO/ MEZCLA EN CALIENTE | G16: OCOTLÁN | H16: 2.8 | I16: 1.4
B17: 122 | C17: OCOTLAN - TOTOTLAN | D17: 25.5 | E17: 6+400-17+800 ( TRAMOS AISLADOS) | F17: APLICACIÓN DE MARCAS SOBRE EL PAVIMENTO BACHEO SUPERFICIAL AISLADO/ MEZCLA EN CALIENTE | G17: OCOTLÁN | H17: 11.4 | I17: 5.7
B18: 124 | C18: PARQUE J. GUADALUPE MONTENEGRO - EL CASTILLO | D18: 12.4 | E18: 0+000-1+300 ( TRAMOS AISLADOS) | F18: APLICACIÓN DE MARCAS SOBRE EL PAVIMENTO BACHEO SUPERFICIAL AISLADO/ MEZCLA EN CALIENTE | G18: EL SALTO | H18: 1.3 | I18: 0.65
B19: 126 | C19: ANILLO PERIFERICO - TESISTAN | D19: 10 | E19: 0+000-2+000 ( TRAMOS AISLADOS) | F19: APLICACIÓN DE MARCAS SOBRE EL PAVIMENTO BACHEO SUPERFICIAL AISLADO/ MEZCLA EN CALIENTE | G19: ZAPOPAN | H19: 2 | I19: 1
B20: 132 | C20: PUENTE GRANDE - SANTA FE | D20: 7.35 | E20: 0+000-8+500 ( TRAMOS AISLADOS) | F20: APLICACIÓN DE MARCAS SOBRE EL PAVIMENTO BACHEO SUPERFICIAL AISLADO/ MEZCLA EN CALIENTE | G20: ZAPOTLANEJO | H20: 8.5 | I20: 4.25
B21: 148 | C21: SANTA ROSA - CHAPALA | D21: 16.4 | E21: 3+200-3+800 ( TRAMOS AISLADOS) 4+200-4+800 ( TRAMOS AISLADOS) | F21: APLICACIÓN DE MARCAS SOBRE EL PAVIMENTO BACHEO SUPERFICIAL AISLADO/ MEZCLA EN CALIENTE | G21: IXTLAHUACAN DE LOS MEMBRILLOS | H21: =0.6+0.6+1 -> 2.2 | I21: 1.1
B22: 154 | C22: PERIFERICO SUR CHAPALA – SALTILLO | D22: 36.6 | E22: 1+000-4+000 ( TRAMOS AISLADOS) | F22: APLICACIÓN DE MARCAS SOBRE EL PAVIMENTO BACHEO SUPERFICIAL AISLADO/ MEZCLA EN CALIENTE | G22: SAN PEDRO TLAQUEPAQUE | H22: 3 | I22: 1.5
B23: 156 | C23: JUANACATLAN - MIRAFLORES | D23: 17.8 | E23: 5+100-14+000 ( TRAMOS AISLADOS) | F23: APLICACIÓN DE MARCAS SOBRE EL PAVIMENTO BACHEO SUPERFICIAL AISLADO/ MEZCLA EN CALIENTE | G23: JUANACATLÁN | H23: 8.9 | I23: 4.45
B24: 168 | C24: PERIFERICO ORIENTE (JAUJA - COLIMILLA) | D24: 14.8 | E24: 10+300-8+200 ( TRAMOS AISLADOS) | F24: APLICACIÓN DE MARCAS SOBRE EL PAVIMENTO BACHEO SUPERFICIAL AISLADO/ MEZCLA EN CALIENTE | G24: TLAJOMULCO DE ZUÑIGA | H24: 2.1 | I24: 1.05
B25: 191 | C25: OCOTLAN - SN. MIGUEL DE LA PAZ - JAMAY | D25: 17 | E25: 0+000-6+000 ( TRAMOS AISLADOS) | F25: APLICACIÓN DE MARCAS SOBRE EL PAVIMENTO BACHEO SUPERFICIAL AISLADO/ MEZCLA EN CALIENTE | G25: OCOTLÁN | H25: 6 | I25: 3
A26: =SUM(#REF!) ->  | G26: TOTAL | H26: =SUM(H13:H25) -> 93.6 | I26: =SUM(I13:I25) -> 46.8

Sheet Teocaltiche
A8: REPORTE DE ACTIVIDADES RESIDENCIA TEOCALTICHE
A9: DICIEMBRE
B10: CÓDIGO | C10: CAMINO | D10: TOTAL KM. DEL CAMINO | E10: TRAMO A INTERVENIR | F10: ACTIVIDADES REALIZADAS | G10: MUNICIPIOS BENEFICIADOS | H10: KMS CONSERVADOS | I10: KMS CONSERVADOS TRAMOS AISLADOS
B11: 201 | C11: IXTLAHUACAN DEL RIO-CUQUIO-MANALISCO-YAHUALICA | D11: 59.5 | E11: 0+000 AL 3+000 12+300 AL 25+000 27+208 AL 27+213 28+588 AL 28+772 36+000 AL 52+000 52+450 AL 54+200 | F11: DESMONTE A MAQUINA BACHEO SUPERFICIAL AISLADO SUPERVISIÓN A PAVIMENTOS INDUSTRIALES Y URBANIZACIONES, S. A. DE C. V. MARCAR, TRAZAR, BARRER Y PINTAR FRANJAS LOGARITMICAS | G11: IXTLAHUACÁN DEL RÍO CUQUÍO | H11: =3+(25-12.3)+(27.213-28.208)+(28.772-28.588)+(52-36)+(54.2-52.45) -> 32.639 | I11: 9.7917
B12: 202 | C12: ENTRONQUE CARRETERO 201.-MANALISCO | D12: 1.949 | E12: 0+000 AL 1+949 | F12: BACHEO SUPERFCIAL AISLADO | G12: YAHUALICA DE GONZÁLEZ GALLO | H12: 1.949 | I12: 0.5847
B13: 205 | C13: YAHUALICA-TEOCALTICHE-JARALILLO | D13: 96.2 | E13: 0+000 AL 17+300 36+000 AL 40+200 53+000 AL 53+300 59+000 AL 96+000 | F13: DESMONTE A MANO DESMONTE A MÁQUINA CALAVEREO Y BACHEO SUPERFICIAL AISLADO MARCAS EN EL PAVIMENTO | G13: YAHUALICA DE GONZÁLEZ GALLO TEOCALTICHE ENCARNACIÓN DE DÍAZ | H13: 12.55 | I13: 3.765
B14: 207 | C14: MEXTICACAN-CAÑADAS DE OBREGÓN | D14: 16.9 | E14: 0+000 AL 11+000 | F14: SUPERVISIÓN A COSTOS, OBRAS Y PROYECTOS S. A. DE C. V. ( MEDIR RAYA CENTRAL Y LATERAL ) | G14: MEXTICACÁN | H14: 11 | I14: 3.3
B15: 208 | C15: YAHUALICA-PUENTE TIMONES ( SUB-TRAMO LIMITE EDO. ZAC. ) | D15: 15.802 | E15: 4+000 | F15: BACHEO SUPERFICIAL AISLADO | G15: YAHUALICA DE GONZÁLEZ GALLO | I15: 0
B16: 211 | C16: TEOCALTICHE-VILLA HIDALGO | D16: 26.6 | E16: 4+000 AL 26+000 | F16: SUPERVISIÓN A CHÁVEZ TERRACERIAS Y PAVIMENTOS, S. A. DE C. V. CALAVEREO Y BACHEO SUPERFICIAL AISLADO | G16: TEOCALTICHE VILLA HIDALGO | H16: 22 | I16: 6.6
B17: 213 | C17: LAGOS DE MORENO-EL PUESTO-LA TROJE | D17: 51 | E17: 0+000 AL 9+500 | F17: BACHEO SUPERFICIAL AISLADO | G17: LAGOS DE MORENO | H17: 9.5 | I17: 2.85
B18: 214 | C18: LA RESURRECCIÓN-EL DESTIERRO-BETULIA | D18: 44.3 | E18: 0+000 AL 11+500 21+000 AL 44+000 | F18: BACHEO SUPERFICIAL AISLADO | G18: ENCARNACIÓN DE DÍAZ | H18: =11.5+23 -> 34.5 | I18: 10.35
B19: 215 | C19: EL LLANO-TEOCALTICHE. | D19: 35.3 | E19: 0+000 AL 12+000 35+000 AL 35+300 | F19: CALAVEREO Y BACHEO SUPERFICIAL AISLADO MARCAS SOBRE EL PAVIMENTO | G19: JALOSTOTITLÁN TEOCALTICHE | H19: 12.3 | I19: 3.69
B20: 216 | C20: LAS LIEBRES - MECHOACANEJO. | D20: 2.3 | E20: 0+000 AL 2+000 | F20: CALAVEREO Y BACHEO SUPERFICIAL AISLADO | G20: TEOCALTICHE | H20: 2 | I20: 0.6
B21: 218 | C21: SAN JUAN DE LOS LAGOS - ENCARNACIÓN DE DIAZ | D21: 25.4 | E21: 0+000 AL 16+000 | F21: CALAVEREO Y BACHEO SUPERFICIAL AISLADO | G21: ENCARNACIÓN DE DÍAZ | H21: 16 | I21: 4.8
B22: 225 | C22: YAHUALICA-HUISQUILCO | D22: 10.9 | E22: 7+000 AL 10+900 | F22: BACHEO SUPERFICIAL AISLADO | G22: YAHUALICA DE GONZÁLEZ GALLO | H22: 3.9 | I22: 1.17
B23: 232 | C23: TECUAN-EL PUESTO | D23: 9.8 | E23: 0+000 AL 9+800 | F23: CALAVEREO Y BACHEO SUPERFICIAL AISLADO | G23: ENCARNACIÓN DE DÍAZ LAGOS DE MORENO | H23: 9.8 | I23: 2.94
B24: 233 | C24: LIBRAMIENTO TEOCALTICHE | D24: 9.099 | E24: 0+000 AL 9+099 | F24: DESMONTE A MANO LIMPIEZA DE LA SUPERFICIE DE RODAMIENTO LIMPIEZA DE CUNETAS LIMPIEZA DE ALCANTARILLA LIMPIEZA DE BANQUETAS RECOGER SELLO RECICLADO MARCAS SOBRE EL PAVIMENTO BACHEO SUPERFICIAL AISLADO | G24: TEOCALTICHE | H24: 9.099 | I24: 2.7297
B25: 236 | C25: PALOS ALTOS-SAN JOSÉ-EL CUATRO | D25: 13.2 | E25: 0+000 AL 13+200 | F25: DESMONTE A MANO DESMONTE A MAQUINA | G25: IXTLAHUACÁN DEL RÍO CUQUÍO | H25: 13.2 | I25: 3.96
B26: 237 | C26: VILLA HIDALGO-SAN JUANICO-LAS FLORES | D26: 27 | E26: 0+000 AL 17+000 | F26: CALAVEREO Y BACHEO SUPERFICIAL AISLADO | G26: VILLA HIDALGO | H26: 17 | I26: 5.1
B27: 238 | C27: SAN ISIDRO ENTRONQUE CARRETERO YAHUALICA-HUISQUILCO | D27: 3.54 | E27: 0+000 AL 3+500 | F27: BACHEO SUPERFICIAL AISLADO | G27: YAHUALICA DE GONZÁLEZ GALLO | H27: 3.5 | I27: 1.05
B28: 240 | C28: TEPONAHUASCO-TEPOZAN-EL CUATRO | D28: 12 | E28: 0+000 AL 9+400 9+500 AL 12+000 | F28: BACHEO SUPERFICIAL AISLADO DESMONTE A MÁQUINA SUPERVISIÓN A CONSTRUCTORA SIVA, S. A. DE C. V. | G28: CUQUIO | H28: 11.9 | I28: 3.57
B29: 241 | C29: ENTRONQUE CARRETERO 225.-EL DURAZNO | D29: 2.45 | E29: 0+000 AL 2+450 | F29: BACHEO SUPERFICIAL AISLADO | G29: YAHUALICA DE GONZÁLEZ GALLO | H29: 2.45 | I29: 0.735
B30: 307 | C30: ATOTONILCO SAN MIGUEL SAN JUAN | D30: 95.7 | E30: 112+000 AL 115+300 115+504 AL 123+500 124+000 AL 124+700 | F30: BACHEO SUPERFICIAL AISLADO | G30: SAN JUAN DE LOS LAGOS | H30: =(115.3-112)+(123.5-115.504)+0.7 -> 11.996 | I30: 3.5988
B31: S/C | C31: BAJÍO DE SAN JOSÉ COYOTES LIMITE DE ESTADO | E31: 17+800 AL 21+300 22+000 AL 24+000 | F31: BACHEO SUPERFICIAL AISLADO | G31: ENCARNACIÓN DE DÍAZ | H31: 5.5 | I31: 1.65
G32: TOTAL | H32: =SUM(H11:H31) -> 242.783 | I32: =SUM(I11:I31) -> 72.8349

Sheet San Miguel
A9: REPORTE DE ACTIVIDADES RESIDENCIA SAN MIGUEL
A11: DICIEMBRE
B12: CÓDIGO | C12: CAMINO | D12: TOTAL KM. DEL CAMINO | E12: TRAMO A INTERVENIR | F12: ACTIVIDADES REALIZADAS | G12: MUNICIPIOS BENEFICIADOS | H12: KMS CONSERVADOS | I12: KMS CONSERVADOS TRAMOS AISLADOS
B13: 302 | C13: LAGOS DE MORENO-UNION DE SAN ANTONIO-SAN DIEGO DE A. | D13: 41.7 | E13: DEL KM. 37+000 AL KM. 41+700 | F13: BACHEO Y/O CALAVEREO EN CARPETA ASFALTICA CON MEZCLA FRIA | G13: SAN DIEGO DE ALEJANDRIA | H13: 4.7 | I13: 2.35
B14: 306 | C14: SAN JUAN DE LOS LAGOS - MEZQUITIC | D14: 3.3 | E14: DEL KM. 0+000 AL KM. 2+100 | F14: TRABAJOS DE BACHEO Y/O CALAVEREO EN CARPETA ASFÁLTICA | G14: SAN JUAN DE LOS LAGOS | H14: 2.1 | I14: 1.05
B15: 307 | C15: ATOTONILCO - SAN MIGUEL EL ALTO - SAN JUAN DE LOS LAGOS | D15: 95.7 | E15: DEL KM. 28+700 DEL KM. 30+000 DEL KM. 55+000 AL KM. 77+000 DEL KM. 80+000 AL KM. 90+000 DEL KM. 99+000 AL KM. 100+000 | F15: BACHEO Y/O CALAVEREO EN CARPETA ASFALTICA CON MEZCLA PREMIUM, TRABAJOS DE SEÑALAMIENTO HORIZONTAL | G15: ATOTONILCO EL ALTO, ARANDAS SAN MIGUEL EL ALTO SAN JUAN DE LOS LAGOS | H15: =13.3+11 -> 24.3 | I15: 12.15
B16: 311 | C16: VALLE DE GPE. SAN MIGUEL EL ALTO (LA LLAVE) | D16: 20.7 | E16: DEL KM. 18+000 AL KM. 19+000 | F16: BACHEO Y/O CALAVEREO EN CARPETA ASFALTICA CON MEZCLA FRIA | G16: SAN MIGUEL EL ALTO | H16: 1 | I16: 0.5
B17: 314 | C17: TEPATITLAN - ARANDAS - LIM. DE EDO. | D17: 97.1 | E17: KM. 0+200 L/D KM. 17+000 L/IZQ. COLOCACION DE SEÑALAMIENTO DEL KM. 16+000 DEL KM. 42+000 DEL KM. 51+000 AL KM. 73+000 DEL KM. 78+000 AL KM. 80+000 DEL KM. 94+000 AL KM. 97+100 | F17: TRABAJOS DE DESMONTE Y DESHIERBE DEL DERECHO DE VIABACHEO Y/O CALAVEREO EN CARPETA ASFALTICA Y RIEGO DE SELLO COLOCACION DE SEÑALAMIENTO VERTICAL | G17: SAN IGNACIO CEDRRO GORDO TEPATITLAN DE MORELOS JESÚS MARÍA ARANDAS | H17: =28+3.1+22 -> 53.1 | I17: 26.55
B18: 317 | C18: ENT. CARR. MEX. 80 - MILPILLAS | D18: 8.5 | E18: DEL KM. 0+000 AL KM.5+000 | F18: RENIVELACIONES EN CARPETA ASFALTICA, BACHEO Y/O CALAVEREO EN CARPETA ASFALTICA CON MEZCLA EN FRIO TRABAJOS DE DESMONTE Y DESHIERBE DEL DERECHO DE VIA | G18: ACATIC TEPATITLÁN DE MORELOS | H18: 5 | I18: 2.5
B19: 321 | C19: ENT. CARR. 314.- JOSEFINO DE ALLENDE | E19: DEL KM. 0+000 AL KM. 2+200 DEL KM. 2+500 AL KM. 5+400 | F19: BACHEO Y/O CALAVEREO EN CARPETA ASFALTICA CON MEZCLA PREMIUM | G19: TEPATITLAN DE MORELOS JESUS MARIA | H19: =2.2+2.9 -> 5.1 | I19: 2.55
B20: 323 | C20: ARANDAS - MARTINEZ VALADEZ | D20: 46 | E20: DEL KM. 2+000 AL KM. 4+000 DEL KM. 4+500 AL KM. 6+900 DEL KM. 9+700 AL KM. 9+708 DEL KM. 9+755 AL KM. 9+775 DEL KM. 9+780 AL KM. 9+784 DEL KM. 9+800 AL KM. 9+805 DEL KM. 10+000 AL KM. 15+000 DEL KM. 42+000 AL KM. 42+040 | F20: RENIVELACIONES EN CARPETA ASFALTICA, BACHEO Y/O CALAVEREO EN CARPETA ASFALTICA CON MEZCLA EN FRIO TRABAJOS DE PUNTEO DE RAYA CENTRAL Y DESMONTE DEL DERECHO DE VIA RIEGO DE SELLO 3-A PREMEZCLADO | G20: ARANDAS | H20: =2+(6.9-4.5)+0.008+0.02+0.004+0.005+5+0.04 -> 9.477 | I20: 4.7385
B21: 326 | C21: TEPATITLAN-SN. JOSE DE GRACIA-SN. FCO. DE ASIS-ATOTONILCO | D21: 42 | E21: DEL KM. 1+000 AL KM. 1+600 | F21: BACHEO Y/O CALAVEREO EN CARPETA ASFALTICA CON MEZCLA FRIA | G21: TEPATITLAN DE MORELOS | H21: 0.6 | I21: 0.3
B22: 328 | C22: ENT. CARR. 314.- ARANDAS (INGRESO ORIENTE) | D22: 1.7 | E22: DEL KM. 0+000 AL KM. 1+700 | F22: TRABAJOS DE BACHEO Y/O CALAVEREO EN CAREPTA ASFALTICA | G22: ARANDAS | H22: 1.7 | I22: 1.7
B23: 337 | C23: ENT. CARR. MEX. 80.- CAÑADAS DE OBREGON | D23: 18.4 | E23: DEL KM. 2+000 AL KM. 6+300 | F23: BACHEO Y/O CALAVEREO EN CARPETA ASFALTICA CON MEZCLA PREMIUM | G23: VALLE DE GUADALUPE CAÑADAS DE OBREGÓN | H23: 4.3 | I23: 2.15
B24: 338 | C24: CAÑADAS DE OBREGON - TEMACAPULIN | D24: 8.9 | E24: DEL KM. 2+000 AL KM. 7+000 DEL KM. 0+000 AL KM. 0+250 | F24: TRABAJOS DE BACHEO Y/O CALAVEREO, TRABAJOS DE BACHEO DE CAJA, DESMONTE Y DESHIERBE DEL DERECHO DE VIA | G24: CAÑADAS DE OBREGON | H24: 5.25 | I24: 2.625
B25: 350 | C25: LIBRAMIENTO NORTE DE ARANDAS | D25: 6.5 | E25: DEL KM. 0+400 L/DER. KM. 6+000 L/IZQ. COLOCACION DE SEÑALAMIENTO | F25: COLOCACION DE SEÑALAMIENTO VERTICAL | G25: ARANDAS
B26: 356 | C26: LIB. NORTE ATOTONILCO | D26: 10 | E26: DEL KM. 0+000 AL KM. 0+400 | F26: TRABAJOS DE SEÑALAMIENTO HORIZONTAL | G26: ATOTONILCO EL ALTO | H26: 0.4 | I26: 0.4
G27: TOTAL | H27: =SUM(H13:H26) -> 117.027 | I27: =SUM(I13:I26) -> 59.5635

Sheet Sayula
A9: REPORTE DE ACTIVIDADES RESIDENCIA SAYULA
A11: DICIEMBRE
B12: CÓDIGO | C12: CAMINO | D12: TOTAL KM. DEL CAMINO | E12: TRAMO A INTERVENIR | F12: ACTIVIDADES REALIZADAS | G12: MUNICIPIOS BENEFICIADOS | H12: KMS CONSERVADOS | I12: KMS CONSERVADOS TRAMOS AISLADOS
B13: 401 | C13: ACATLAN DE J. - CD GUZMAN | D13: 91 | E13: 0+000 AL 4+540 42+000 AL 72+500 | F13: DESMONTE BACHEO RETIRO SEÑALAM. DAÑADO | G13: ACATLAN DE JUÁREZ AMACUECA SAYULA TECHALUTA DE MONTENEGRO | H13: =72.5-42+4.54 -> 35.04 | I13: 17.52
B14: 404 | C14: EL ZAPOTE - TEOCUITATLAN | D14: 18.6 | E14: 15+000 AL 16+800 | F14: DESMONTE | G14: TEOCUITATLAN | H14: 1.8 | I14: 0.9
B15: 408 | C15: USMAJAC - AUTOPISTA (GDL - COL - MANZ.) | D15: 2.6 | E15: 0+000 AL 2+600 | F15: BACHEO SUPERFICIAL | G15: SAYULA | H15: 2.6 | I15: 1.3
B16: 425 | C16: EL JAZMIN - ZAPOTITLAN DE V. | D16: 22.5 | E16: 7+500 | F16: REPARACION DE DESLAVE | G16: TOLIMAN | I16: 0
B17: 427 | C17: SAN GABRIEL - ENTR. CARR. TOLIMAN | D17: 21.6 | E17: 4+000 AL 6+000 12+800 AL 20+200 | F17: BACHEO | G17: SAN GABRIEL TOLIMAN | H17: 9.4 | I17: 4.7
B18: 428 | C18: TONAYA - CD GUZMAN | D18: 68.773 | E18: 101+500 AL 104+000 107+500 AL 108+ 100 | F18: BACHEO | G18: ZAPTLÁN EL GRANDE | H18: =0.6+2.5 -> 3.1 | I18: 1.55
B19: 432 | C19: SAYULA - SAN GABRIEL | D19: 43.6 | E19: 0+000 AL 1+500 | F19: ENTREGA Y ELABORACION DE MEZCLA ASFALTICA BACHEO SUPERFICIAL | G19: SAYULA | H19: 1.5 | I19: 0.75
B20: 433 | C20: TAPALPA - SAN GABRIEL | D20: 35 | E20: 33+000 AL 35+000 | F20: BACHEO | G20: SN GABRIEL | H20: 2 | I20: 1
B21: 436 | C21: ENTR. CARR. 401 - TAPALPA | D21: 32.5 | E21: 3+200 AL 3+700 15+000 AL 16+500 18+000 AL 29+500 | F21: DESMONTE BACHEO AISLADO | G21: AMACUECA TAPALPA | H21: =12+1.5 -> 13.5 | I21: 6.75
B22: 449 | C22: TECALITLAN - JILOTLAN DE LOS D. | D22: 62.507 | E22: TRANSITO | F22: TRANSITO | G22: TECALITLÁN SAYULA | I22: 0
B23: 466 | C23: ZAPOTLAN - ATEQUIZAYAN | D23: 8.69 | E23: 0+000 AL 5+400 | F23: BACHEO SUPERFICIAL | G23: ZAPTLÁN EL GRANDE | H23: 5.4 | I23: 2.7
B24: 467 | C24: EL BALASTRE -- EL GUAYABO | D24: 42.38 | E24: 0+000 AL 22+000 | F24: SUPERVISION DE TRABAJO EMPRESA | G24: PIHUAMO | H24: 22 | I24: 11
B25: 472 | C25: ENTR. CARR. TOLIMAN - CUAUHTEMOC | D25: 1.2 | E25: 0+000 AL 1+200 | F25: BACHEO | G25: TOLIMAN | H25: 1.2 | I25: 0.6
G26: TOTAL | H26: =SUM(H13:H25) -> 97.54 | I26: =SUM(I13:I25) -> 48.77

Sheet Autlán
A9: REPORTE DE ACTIVIDADES RESIDENCIA AUTLÁN
A11: DICIEMBRE
B12: CÓDIGO | C12: CAMINO | D12: TOTAL KM. DEL CAMINO | E12: TRAMO A INTERVENIR | F12: ACTIVIDADES REALIZADAS | G12: MUNICIPIOS BENEFICIADOS | H12: KMS CONSERVADOS | I12: KMS CONSERVADOS TRAMOS AISLADOS
B13: 504 | C13: EL LIMÓN - LA CIENEGA - SAN MIGUEL | D13: 9 | E13: KM 1+900 AL KM 7+000 | F13: DESMONTE | G13: EL LIMÓN | H13: =7-1.9 -> 5.1 | I13: 1.53
B14: 505 | C14: EL PINAL-LA CONCHA-CUAUTITLAN DE G.B. | D14: 23.7 | E14: KM 0+000 AL KM 21+500 | F14: DESMONTE | G14: LA HUERTA CUAUTITLÁN DE GARCÍA BARRAGÁN | H14: 21.5 | I14: 6.45
B15: 508 | C15: LIBRAMIENTO AUTLÁN | D15: 4.6 | E15: KM 0+850 AL KM 2+600 KM 3+200 AL KM 4+020 | F15: DESMONTE | G15: AUTLÁN | H15: =1.75+0.82 -> 2.57 | I15: 0.771
B16: 510 | C16: ENTR. CARR. MEX. 80.- PURIFICACIÓN | D16: 21.1 | E16: KM 0+000 AL KM 21+100 | F16: DESMONTE | G16: CASIMIRO CASTILLO VILLA PURIFICACIÓN | H16: 21.1 | I16: 6.33
B17: 513 | C17: PUENTE CORCOVADO - TONAYA | D17: 39.6 | E17: KM 0+000 AL KM 39+000 | F17: DESMONTE Y BALIZAMIENTO HORIZTAL. | G17: EL GRULLO EL LIMÓN TONAYA | H17: 39 | I17: 11.7
B18: 522 | C18: ENTR. CARR. MEX. 200 - BOCA DE LAS IGUANAS | D18: 3 | E18: KM 0+000 AL KM 3+000 | F18: BALIZAMIENTO | G18: CIHUATLÁN | H18: 3 | I18: 0.9
B19: 526 | C19: SAN CLEMENTE - AYUTLA - LA CAMPANA | D19: 61.2 | E19: KM 15+000 AL KM 17+300 | F19: BALIZAMIENTO HORIZONTAL DESMONTE | G19: UNIÓN DE TULA AYUTLA CUAUTLA ATENGUILLO | H19: 2.3 | I19: 0.69
B20: 529 | C20: TECOLOTLÁN-TENAMAXTLÁN-SOYATLÁN DEL ORO | D20: 33.9 | E20: KM 0+000 AL KM 23+000 | F20: CONSTRUC. DE MUROS DE MAMPOSTERÍA BALIZAMIENTO EN TOPES DESMONTE | G20: TECOLOTLÁN TENAMAXTLÁN ATENGO | H20: 23 | I20: 6.9
B21: 530 | C21: UNIÓN DE TULA - EJUTLA | D21: 19.2 | E21: KM 0+000 AL KM 19+200 | F21: BALIZAMIENTO | G21: UNIÓN DE TULA EJUTLA | H21: 19.2 | I21: 5.76
B22: 531 | C22: EL GRULLO - EJUTLA | D22: 14.6 | E22: KM 0+000 AL KM 14+600 | F22: BACHEO | G22: EL GRULLO EJUTLA | H22: 14.6 | I22: 4.38
B23: 532 | C23: JUCHITLÁN - LOS GUAJES | D23: 10 | E23: KM 0+000 AL KM 10+000 | F23: BALIZAMIENTO | G23: JUCHITLÁN | H23: 10 | I23: 3
B24: 536 | C24: LAS PAREDES - EL CHANTE | D24: 9.37 | E24: KM 4+200 AL KM 5+100 | F24: DESMONTE | G24: AUTLÁN | H24: 0.9 | I24: 0.27
B25: 540 | C25: ENTR. CARR. MEX. 200.- LA MANZANILLA | D25: 1.3 | E25: KM 0+000 AL KM 1+300 | F25: BALIZAMIENTO HORIZONTAL | G25: LA HUERTA | H25: 1.3 | I25: 0.39
B26: 541 | C26: ENTR. CARR. MEX. 200.- TENACATITA | D26: 9 | E26: KM 0+000 AL KM 3+000 | F26: BALIZAMIENTO | G26: LA HUERTA | H26: 3 | I26: 0.9
B27: 542 | C27: ENTR. CARR. MEX. 200.- PUNTA PERULA | D27: 3 | E27: KM 2+200 AL KM 3+000 | F27: BALIZAMIENTO HORIZONTAL | G27: LA HUERTA | H27: 0.8 | I27: 0.24
B28: 543 | C28: AYUTLA - TEPANTLA | D28: 6 | E28: KM 0+000 AL KM 6+000 | F28: BALIZAMIENTO | G28: AYUTLA | H28: 6 | I28: 1.8
B29: 544 | C29: MASCOTA-LA ESTANCIA-LAS PALMAS-LAS JUNTAS | D29: 91.3 | E29: KM 16+000 AL KM 56+000 | F29: BACHEO DESMONTE Y REMOCIÓN DE DERRUMBES | G29: MASCOTA SAN SEBASTÍAN DEL OESTE PUERTO VALLARTA. | H29: =56-16 -> 40 | I29: 12
B30: 554 | C30: VILLA PURIFICACIÓN-CHAMELA | D30: 66 | E30: KM 0+000 AL KM 5+200 KM 28+000 AL KM 45+000 | F30: BACHEO | G30: VILLA PURIFICACIÓN LA HUERTA | H30: =5.2+17 -> 22.2 | I30: 6.66
G31: TOTAL | H31: =SUM(H13:H30) -> 235.57 | I31: =SUM(I13:I30) -> 70.671

Sheet Ahualulco
A9: REPORTE DE ACTIVIDADES RESIDENCIA AHUALULCO
A11: DICIEMBRE
B12: CÓDIGO | C12: CAMINO | D12: TOTAL KM. DEL CAMINO | E12: TRAMO A INTERVENIR | F12: ACTIVIDADES REALIZADAS | G12: MUNICIPIOS BENEFICIADOS | H12: KMS CONSERVADOS | I12: KMS CONSERVADOS TRAMOS AISLADOS
B13: 601 | C13: TALA - STA. CRUZ DE LAS FLORES | D13: 35 | E13: DEL KM 0+000 AL KM 14+000 | F13: BACHEO Y CALAVEREO | G13: TALA TLAJOMULLCO DE ZUÑIGA | H13: 14 | I13: =H13*0.5 -> 7
B14: 602 | C14: EL AMARILLO - LA VEGA | D14: 8.9 | E14: DEL KM 0+000 AL KM 1+000 DEL KM 4+500 AL KM 7+360 | F14: DESMONTE EN EL DERECHO DE VIA | G14: TEUCHITLAN | H14: 3.86 | I14: =H14*0.5 -> 1.93
B15: 604 | C15: EL REFUGIO - SAN MARCOS | D15: 53.7 | E15: DEL KM 24+000+000 AL KM 53+700 | F15: DESMONTE EN EL DERECHO DE VIA, BACHEO Y CALAVEREO | G15: AHUALULCO SAN JUANITO DE ESCOBEDO ETZATLAN SAN MARCOS | H15: =53.7-24 -> 29.7 | I15: 14.85
B16: 608 | C16: AHUALULCO - AMECA | D16: 30.6 | E16: DEL KM 23+900 AL KM 29+000 | F16: DESMONTE EN EL DERECHO DE VIA | G16: AHUALULCO AMECA | H16: 5.1 | I16: 2.55
B17: 611 | C17: ENTR. CARR. (GUAD.-AMECA) - CUISILLOS | D17: 1.7 | E17: DEL KM 0+000 AL KM 1+700 | F17: BACHEO Y CALAVEREO | G17: TALA | H17: 1.7 | I17: 1.7
B18: 617 | C18: ENTR. CARR. (GUAD.-AMECA) - HUAXTLA - STA. CRUZ DEL ASTILLERO | D18: 4.86 | E18: DEL KM 0+000 AL KM 4+860 | F18: BACHEO Y CALAVEREO | G18: AMATITAN | H18: 4.86 | I18: 2.43
B19: 618 | C19: CRUC. STA. MARIA - SN. MARTIN HGO. - AMECA | D19: 23.1 | E19: DEL KM 0+000 AL KM 23+100 | F19: DESMONTE EN EL DERECHO DE VIA BACHEO Y CALAVEREO | G19: SAN MARTIN HIDALGO AMECA | H19: 23.1 | I19: 11.55
B20: 619 | C20: SN. MARTIN HGO. - STA. CRUZ DE LAS FLORES | D20: 3.6 | E20: DEL KM 0+050 AL KM 0+636 | F20: BACHEO PROFUNDO AISLADO (RENIVELACIÓN), DESAZOLVE DE CUNETAS | G20: SAN MARTIN HIDALGO | H20: 0.636 | I20: 0.318
B21: 620 | C21: ENTR. CARR. (AMECA-MASCOTA) - GUACHINANGO | D21: 7.5 | E21: DEL KM 0+000 AL KM 7+500 | F21: BACHEO Y CALAVEREO | G21: GUACHINANGO | H21: 7.5 | I21: 3.75
B22: 621 | C22: LA COFRADIA - LA SAUCEDA - BUENAVISTA | D22: 22.2 | E22: DEL KM 0+000 AL KM 22+000 | F22: BACHEO Y CALAVEREO | G22: VILLA CORONA SAN MARTIN HIDALGO AMECA | H22: 22 | I22: 11
B23: 623 | C23: LA NORIA - ESTIPAC - ATOTONILCO EL BAJO | D23: 11.1 | E23: DEL KM 0+000 AL KM 11+100 | F23: BACHEO Y CALAVEREO | G23: VILLA CORONA | H23: 11.1 | I23: 5.55
B24: 626 | C24: AHUALULCO - SAN IGNACIO - EL CARMEN | D24: 9 | E24: DEL KM 0+000 AL KM 9+000 | F24: BACHEO Y CALAVEREO | G24: AHUALULCO | H24: 9 | I24: 4.5
B25: 632 | C25: SAN MARCOS - LIMITE DE ESTADOS | D25: 10.4 | E25: DEL KM 2+000 AL KM 6+500 | F25: BACHEO Y CALAVEREO | G25: SAN MARCOS | H25: 4.5 | I25: 2.25
B26: 634 | C26: ENTR. CARR. (GUAD.-AMECA) - PUERTA DE LA VEGA | D26: 6 | E26: DEL KM 0+000 AL KM 5+600 | F26: BACHEO Y CALAVEREO | G26: AMECA TEUCHITLAN | H26: 5.6 | I26: 2.8
B27: 637 | C27: INGRESO NORTE AMECA | D27: 1.1 | E27: DEL KM 0+000 AL KM 1+100 | F27: BACHEO Y CALAVEREO | G27: AMECA | H27: 1.1 | I27: 0.71
G28: TOTAL | H28: =SUM(H13:H27) -> 143.756 | I28: =SUM(I13:I27) -> 72.888

Sheet Villa Guerrero
A11: REPORTE DE ACTIVIDADES RESIDENCIA VILLA GUERRERO
A13: DICIEMBRE
B14: CÓDIGO | C14: CAMINO | D14: TOTAL KM. DEL CAMINO | E14: TRAMO A INTERVENIR | F14: ACTIVIDADES REALIZADAS | G14: MUNICIPIOS BENEFICIADOS | H14: KMS CONSERVADOS TRAMOS AISLADOS
B15: 701 | C15: ENT.CARR.FED.MEX.23-VILLA GUERRERO | D15: 38.646 | E15: DEL KM 0+000 AL KM 38+400 | F15: DESHIERBE, COLOCACION DE SEÑALAMIENTO Y PINTADO DE TOPES | G15: COLOTLAN TOTATICHE VILLA GUERRERO | H15: 38.4
B16: 702 | C16: VILLA GUERRERO-SAN MARTIN DE BOLAÑOS | D16: 62.15 | E16: DEL KM 1+300 AL KM 7+000 DEL KM 49+200 AL KM 52+200 | F16: DESHIERBE Y DESMONTE | G16: VILLA GUERRERO CHIMALTITAN | H16: 11.3
B17: 704 | C17: ENT.CARR.JAL.701-TEMASTIAN | D17: 2.01 | E17: DEL KM 0+300 AL KM 0+500 | F17: PINTADO DE TOPES | G17: TOTATICHE | H17: 0.2
B18: 705 | C18: MONTE ESCOBEDO-MEZQUITIC | D18: 22.33 | E18: DEL KM 18+860 AL KM 19+400 | F18: PINTADO DE PUENTES, TOPES Y RAYAS LOGARITMICAS | G18: MEZQUITIC | H18: 0.54
B19: 706 | C19: HUEJUQUILLA-MEZQUITIC | D19: 27.8 | E19: EN LOS KMS 0+300 25+000 34+200 41+100 DEL KM 41+200 AL KM 42+000 | F19: PINTADO DE PUENTES DESHIERBE | G19: MEZQUITIC HUEJUQUILLA | H19: 0.8
B20: 707 | C20: HUEJUQUILLA-VALPARAISO | D20: 20.7 | E20: EN LOS KMS 0+300 3+300 7+200 DEL KM 19+000 AL KM 19+300 | F20: PINTADO DE PUENTES RAYAS LOGARITMICAS | G20: HUEJUQUILLA EL ALTO | H20: 0.3
B21: 711 | C21: BOLAÑOS-TENZOMPA-HUEJUQUILLA | D21: 130.593 | E21: DEL KM 38+900 AL KM 41+100 | F21: BACHEO SUPERFICIAL | G21: BOLAÑOS | H21: 2.2
B22: 712 | C22: HUEJUCAR-MONTE ESCOBEDO | D22: 21.96 | E22: DEL KM 1+400 AL KM 1+700 DEL KM 16+000 AL KM 17+000 | F22: DESHIERBE Y PINTADO DE PUENTES | G22: HUEJUCAR | H22: 1.3
B23: 718 | C23: MEZQUITIC-NOSTIC | D23: 11.206 | E23: EN EL KM 5+500 DEL KM 7+800 AL KM 8+006 | F23: PINTADO DE PUENTES, BACHEO SUPERFICIAL Y DESHIERBE | G23: MEZQUITIC | H23: 0.206
G24: TOTAL | H24: =SUM(H15:H23) -> 55.246

Sheet Resumen por Residencia
C2: S E C R E T A R I A D E I N F R A E S T R U C T U R A Y O B R A P Ú B L I C A
C5: D I R E C C I Ó N G E N E R A L D E I N F R A E S T R U C T U R A C A R R E T E R A
C13: AVANCES MIDE POR RESIDENCIA DICIEMBRE 2017
C19: RESIDENCIA | D19: TOTAL DE CAMINOS ATENDIDOS | E19: TOTAL KM CONSERVADOS | F19: TOTAL KM CONSERVADOS
C20: GUADALAJARA | D20: 13 | E20: =Guadalajara!I26 -> 46.8 | F20: =Guadalajara!I26 -> 46.8
C21: TEOCALTICHE | D21: 21 | E21: =Teocaltiche!I32 -> 72.8349 | F21: =Teocaltiche!I32 -> 72.8349
C22: SAN MIGUEL | D22: 14 | E22: ='San Miguel'!I27 -> 59.5635 | F22: ='San Miguel'!I27 -> 59.5635
C23: SAYULA | D23: 13 | E23: =Sayula!I26 -> 48.77 | F23: =Sayula!I26 -> 48.77
C24: AUTLÁN | D24: 18 | E24: =Autlán!I31 -> 70.671 | F24: =#REF! -> 
C25: AHUALULCO | D25: 15 | E25: =Ahualulco!I28 -> 72.888 | F25: =#REF! -> 
C26: VILLA GUERRERO | D26: 9 | E26: ='Villa Guerrero'!H24 -> 55.246 | F26: =#REF! -> 
C27: TOTAL | D27: =SUM(D20:D26) -> 103 | E27: =SUM(E20:E26) -> 426.7734 | F27: =SUM(F20:F26) -> 

Sheet Resumen Global
D2: S E C R E T A R I A D E I N F R A E S T R U C T U R A Y O B R A P Ú B L I C A
D5: D I R E C C I Ó N G E N E R A L D E I N F R A E S T R U C T U R A C A R R E T E R A
D13: AVANCES MIDE DICIEMBRE 2017
D17: RESIDENCIA | E17: TOTAL DE CAMINOS ATENDIDOS EN EL MES DICIEMBRE | F17: TOTAL KM. CONSERVADOS DICIEMBRE | G17: TOTAL KM. CONSERVADOS ACUMULADOS | H17: TOTAL KM. CONSERVADOS
D18: GUADALAJARA, TEOCALTICHE, SAN MIGUEL, SAYULA, AUTLAN, AHUALULCO, VILLA GUERRERO. | E18: ='Resumen por Residencia'!D27 -> 103 | F18: ='Resumen por Residencia'!E27 -> 426.7734 | G18: 4403.7019 | H18: ='Resumen por Residencia'!F27 -> 
D36: ATENTAMENTE
D40: ING. ESAÚ FLORES ÁLVAREZ
D41: DIRECTOR GENERAL DE INFRAESTRUCTURA CARRTERA.
